[Event "Kvibergspelen September 2019"]
[Site "Prioritet Serneke Arena, Krutvagen 2, Gothenburg, Sweden"]
[Date "2019.09.29"]
[Round "8.17"]
[White "Hansen, Lars"]
[Black "Bengtsson, Tage"]
[Result "0-1"]
[TimeControl "15 minutes + 5 seconds per move from move one (Round 1 - 4) / 90 minutes + 30 seconds per move from move one (Round 5 - 8)"]
[WhiteFideId "1402528"]
[BlackFideId "1713850"]
[WhiteElo "2207"]
[BlackElo "1984"]

1. d4 {[%clk 01:30:03]} {[%emt 00:00:57]} d5 {[%clk 01:30:50]} {[%emt
00:00:10]} 2. c4 {[%clk 01:30:25]} {[%emt 00:00:08]} e6 {[%clk 01:31:16]}
{[%emt 00:00:04]} 3. Nc3 {[%clk 01:30:48]} {[%emt 00:00:06]} c5 {[%clk
01:31:44]} {[%emt 00:00:03]} 4. cxd5 {[%clk 01:30:57]} {[%emt 00:00:22]} exd5
{[%clk 01:32:12]} {[%emt 00:00:02]} 5. Nf3 {[%clk 01:31:14]} {[%emt 00:00:11]}
Nc6 {[%clk 01:32:33]} {[%emt 00:00:11]} 6. g3 {[%clk 01:31:22]} {[%emt
00:00:22]} Nf6 {[%clk 01:32:49]} {[%emt 00:00:13]} 7. Bg2 {[%clk 01:31:46]}
{[%emt 00:00:06]} Be7 {[%clk 01:33:16]} {[%emt 00:00:03]} 8. O-O {[%clk
01:31:54]} {[%emt 00:00:22]} O-O {[%clk 01:33:43]} {[%emt 00:00:04]} 9. dxc5
{[%clk 01:31:15]} {[%emt 00:01:09]} Bxc5 {[%clk 01:33:08]} {[%emt 00:01:04]} 10.
Bg5 {[%clk 01:31:22]} {[%emt 00:00:23]} d4 {[%clk 01:30:36]} {[%emt 00:03:03]}
11. Bxf6 {[%clk 01:30:26]} {[%emt 00:01:26]} Qxf6 {[%clk 01:29:25]} {[%emt
00:01:41]} 12. Ne4 {[%clk 01:30:44]} {[%emt 00:00:12]} Qe7 {[%clk 01:29:47]}
{[%emt 00:00:07]} 13. Nxc5 {[%clk 01:30:40]} {[%emt 00:00:34]} Qxc5 {[%clk
01:30:15]} {[%emt 00:00:02]} 14. Rc1 {[%clk 01:30:13]} {[%emt 00:00:57]} Qb6
{[%clk 01:30:13]} {[%emt 00:00:32]} 15. Qc2 {[%clk 01:29:39]} {[%emt 00:01:03]}
Nb4 {[%clk 01:25:17]} {[%emt 00:05:28]} 16. Qc5 {[%clk 01:13:36]} {[%emt
00:16:33]} d3 {[%clk 01:20:03]} {[%emt 00:05:44]} 17. exd3 {[%clk 00:32:51]}
{[%emt 00:41:16]} Nxd3 {[%clk 01:14:44]} {[%emt 00:05:48]} 18. Qxb6 {[%clk
00:33:03]} {[%emt 00:00:19]} axb6 {[%clk 01:15:09]} {[%emt 00:00:04]} 19. Rc7
{[%clk 00:32:39]} {[%emt 00:00:53]} Rxa2 {[%clk 01:14:34]} {[%emt 00:01:05]} 20.
b3 {[%clk 00:21:12]} {[%emt 00:11:58]} Rb2 {[%clk 01:12:35]} {[%emt 00:02:29]}
21. Nd4 {[%emt 00:10:04]} Nc5 {[%clk 01:04:34]} {[%emt 00:08:25]} 22. Rc1
{[%clk 00:05:08]} {[%emt 00:07:06]} Be6 {[%clk 01:02:45]} {[%emt 00:02:18]} 23.
Nxe6 {[%clk 00:05:16]} {[%emt 00:00:23]} fxe6 {[%clk 01:03:04]} {[%emt
00:00:12]} 24. f4 {[%clk 00:03:13]} {[%emt 00:02:32]} Rd8 {[%clk 00:55:32]}
{[%emt 00:08:01]} 25. Bxb7 {[%clk 00:02:05]} {[%emt 00:01:39]} Rxb3 {[%clk
00:55:29]} {[%emt 00:00:34]} 26. Bg2 {[%clk 00:01:25]} {[%emt 00:01:10]} Rbd3
{[%clk 00:53:56]} {[%emt 00:02:02]} 27. Rc6 {[%clk 00:00:53]} {[%emt 00:01:02]}
Rd1+ {[%clk 00:53:12]} {[%emt 00:01:14]} 28. Rxd1 {[%clk 00:01:22]} {[%emt
00:00:02]} Rxd1+ {[%clk 00:53:33]} {[%emt 00:00:09]} 29. Kf2 {[%clk 00:01:49]}
{[%emt 00:00:02]} Rd2+ {[%clk 00:53:29]} {[%emt 00:00:34]} 30. Kg1 {[%clk
00:02:02]} {[%emt 00:00:16]} Rb2 {[%clk 00:53:38]} {[%emt 00:00:22]} 31. f5
{[%clk 00:01:04]} {[%emt 00:01:28]} exf5 {[%clk 00:51:39]} {[%emt 00:02:29]} 32.
Bd5+ {[%clk 00:01:27]} {[%emt 00:00:07]} Kf8 {[%clk 00:52:02]} {[%emt
00:00:07]} 33. Rc7 {[%clk 00:01:34]} {[%emt 00:00:22]} Rd2 {[%clk 00:48:46]}
{[%emt 00:03:46]} 34. Rf7+ {[%clk 00:01:26]} {[%emt 00:00:37]} Ke8 {[%clk
00:49:15]} {[%emt 00:00:02]} 35. Rxf5 {[%clk 00:01:42]} {[%emt 00:00:13]} g6
{[%clk 00:46:20]} {[%emt 00:03:26]} 36. Re5+ {[%clk 00:01:23]} {[%emt
00:00:49]} Kf8 {[%clk 00:46:49]} {[%emt 00:00:02]} 37. Bc4 {[%clk 00:01:13]}
{[%emt 00:00:39]} Rd4 {[%clk 00:46:36]} {[%emt 00:00:43]} 38. Bb5 {[%clk
00:01:27]} {[%emt 00:00:16]} Kf7 {[%clk 00:46:19]} {[%emt 00:00:47]} 39. Re2
{[%clk 00:01:19]} {[%emt 00:00:36]} Ne4 {[%clk 00:45:38]} {[%emt 00:01:13]} 40.
Re1 {[%clk 00:00:37]} {[%emt 00:01:13]} Nd6 {[%clk 00:44:37]} {[%emt 00:01:30]}
41. Bc6 {[%clk 00:00:38]} {[%emt 00:00:28]} b5 {[%clk 00:42:47]} {[%emt
00:02:20]} 42. Rf1+ {[%clk 00:01:04]} {[%emt 00:00:05]} Ke7 {[%clk 00:43:04]}
{[%emt 00:00:12]} 43. Re1+ {[%emt 00:00:18]} Kd8 {[%clk 00:43:19]} {[%emt
00:00:13]} 44. Rb1 {[%clk 00:01:30]} {[%emt 00:00:19]} b4 {[%clk 00:43:45]}
{[%emt 00:00:04]} 45. Kf2 {[%clk 00:01:42]} {[%emt 00:00:18]} Kc7 {[%clk
00:43:52]} {[%emt 00:00:24]} 46. Ba4 {[%clk 00:01:55]} {[%emt 00:00:16]} Kb6
{[%clk 08:23:42]} {[%emt 00:00:40]} 47. h3 {[%clk 00:02:14]} {[%emt 00:00:11]}
Kc5 {[%clk 00:43:18]} {[%emt 00:00:53]} 48. g4 {[%clk 00:02:29]} {[%emt
00:00:16]} Rc4 {[%clk 00:43:18]} {[%emt 00:00:30]} 49. Ke2 {[%clk 00:02:15]}
{[%emt 00:00:43]} Ne4 {[%clk 00:43:31]} {[%emt 00:00:18]} 50. Kd3 {[%clk
00:01:38]} {[%emt 00:01:07]} Nf2+ {[%clk 00:42:56]} {[%emt 00:01:04]} 51. Kd2
{[%clk 00:01:54]} {[%emt 00:00:15]} Nxh3 {[%clk 00:42:43]} {[%emt 00:00:42]} 52.
Bd1 {[%clk 00:01:44]} {[%emt 00:00:41]} Nf4 {[%clk 00:41:08]} {[%emt 00:02:04]}
53. Bb3 {[%clk 00:01:28]} {[%emt 00:00:47]} Rd4+ {[%clk 00:39:21]} {[%emt
00:02:16]} 54. Kc2 {[%clk 00:01:38]} {[%emt 00:00:21]} Nd5 {[%clk 00:39:23]}
{[%emt 00:00:27]} 55. Rh1 {[%clk 00:01:00]} {[%emt 00:01:08]} Ne3+ {[%clk
00:37:17]} {[%emt 00:02:35]} 56. Kb1 {[%clk 00:01:00]} {[%emt 00:00:30]} Rxg4
{[%clk 00:32:29]} {[%emt 00:05:19]} 57. Rxh7 {[%clk 00:01:24]} {[%emt
00:00:07]} Kd4 {[%clk 00:31:04]} {[%emt 00:01:54]} 58. Be6 {[%clk 00:01:18]}
{[%emt 00:00:35]} Re4 {[%clk 00:29:47]} {[%emt 00:01:48]} 59. Rd7+ {[%clk
00:01:20]} {[%emt 00:00:28]} Kc3 {[%clk 00:29:41]} {[%emt 00:00:36]} 60. Bf7
{[%clk 00:00:38]} {[%emt 00:01:13]} g5 {[%clk 00:29:50]} {[%emt 00:00:21]} 61.
Bg6 {[%clk 00:00:55]} {[%emt 00:00:13]} Rd4 {[%clk 00:29:49]} {[%emt 00:00:30]}
62. Rc7+ {[%clk 00:01:11]} {[%emt 00:00:14]} Nc4 {[%clk 00:29:43]} {[%emt
00:00:37]} 63. Bh5 {[%clk 00:00:40]} {[%emt 00:01:01]} g4 {[%clk 00:29:36]}
{[%emt 00:00:37]} 64. Kc1 {[%clk 00:00:56]} {[%emt 00:00:14]} b3 {[%clk
00:29:47]} {[%emt 00:00:19]} 65. Bg6 {[%clk 00:01:03]} {[%emt 00:00:23]} b2+
{[%clk 00:30:02]} {[%emt 00:00:15]} 0-1

[Event "Kvibergspelen September 2019"]
[Site "Prioritet Serneke Arena, Krutvagen 2, Gothenburg, Sweden"]
[Date "2019.09.29"]
[Round "8.18"]
[White "Skou, Niels"]
[Black "Ernst, Thomas"]
[Result "1-0"]
[TimeControl "15 minutes + 5 seconds per move from move one (Round 1 - 4) / 90 minutes + 30 seconds per move from move one (Round 5 - 8)"]
[BlackTitle "GM"]
[WhiteFideId "1413155"]
[BlackFideId "1700065"]
[WhiteElo "2082"]
[BlackElo "2328"]

1. d4 {[%clk 01:30:49]} {[%emt 00:00:10]} Nf6 {[%clk 01:30:41]} {[%emt
00:00:19]} 2. c4 {[%clk 01:31:09]} {[%emt 00:00:09]} g6 {[%clk 01:31:02]}
{[%emt 00:00:10]} 3. Nc3 {[%clk 01:31:28]} {[%emt 00:00:11]} d5 {[%clk
01:31:17]} {[%emt 00:00:15]} 4. Nf3 {[%clk 01:31:45]} {[%emt 00:00:13]} Bg7
{[%clk 01:31:39]} {[%emt 00:00:08]} 5. Bf4 {[%clk 01:31:52]} {[%emt 00:00:23]}
O-O {[%clk 01:31:45]} {[%emt 00:00:25]} 6. e3 {[%clk 01:31:42]} {[%emt
00:00:39]} c5 {[%clk 01:31:22]} {[%emt 00:00:53]} 7. dxc5 {[%clk 01:29:27]}
{[%emt 00:02:45]} Qa5 {[%clk 01:31:30]} {[%emt 00:00:22]} 8. Rc1 {[%clk
01:27:05]} {[%emt 00:02:52]} dxc4 {[%clk 01:31:21]} {[%emt 00:00:39]} 9. Bxc4
{[%clk 01:26:39]} {[%emt 00:00:55]} Qxc5 {[%clk 01:31:20]} {[%emt 00:00:32]} 10.
Bb3 {[%clk 01:26:03]} {[%emt 00:01:06]} Nc6 {[%clk 01:30:59]} {[%emt 00:00:51]}
11. O-O {[%clk 01:26:00]} {[%emt 00:00:30]} Qa5 {[%clk 01:31:06]} {[%emt
00:00:25]} 12. h3 {[%clk 01:25:55]} {[%emt 00:00:35]} Bf5 {[%clk 01:30:46]}
{[%emt 00:00:49]} 13. Qe2 {[%clk 01:25:32]} {[%emt 00:00:54]} Ne4 {[%clk
01:30:37]} {[%emt 00:00:39]} 14. g4 {[%clk 01:25:14]} {[%emt 00:00:49]} Nxc3
{[%clk 01:20:21]} {[%emt 00:10:46]} 15. bxc3 {[%clk 01:25:03]} {[%emt
00:00:40]} Bd7 {[%clk 01:20:16]} {[%emt 00:00:34]} 16. Rfd1 {[%clk 01:25:22]}
{[%emt 00:00:12]} Rad8 {[%clk 01:20:07]} {[%emt 00:00:39]} 17. Rd5 {[%clk
01:25:35]} {[%emt 00:00:16]} Qb6 {[%clk 01:20:28]} {[%emt 00:00:10]} 18. Rb1
{[%clk 01:23:20]} {[%emt 00:02:45]} Bc8 {[%clk 01:14:33]} {[%emt 00:06:25]} 19.
Rg5 {[%clk 01:22:21]} {[%emt 00:01:28]} Be6 {[%clk 01:00:45]} {[%emt 00:14:18]}
20. Rb5 {[%clk 01:21:57]} {[%emt 00:00:55]} Qa6 {[%clk 01:00:58]} {[%emt
00:00:18]} 21. Bxe6 {[%clk 01:20:45]} {[%emt 00:01:41]} fxe6 {[%clk 01:01:22]}
{[%emt 00:00:06]} 22. Qc4 {[%clk 01:15:05]} {[%emt 00:06:09]} Rd5 {[%clk
00:59:53]} {[%emt 00:01:59]} 23. a4 {[%clk 01:15:01]} {[%emt 00:00:34]} Na5
{[%clk 00:57:22]} {[%emt 00:03:03]} 24. Qb4 {[%clk 01:03:20]} {[%emt 00:12:10]}
Nc6 {[%clk 00:56:56]} {[%emt 00:00:55]} 25. Qe4 {[%clk 01:01:04]} {[%emt
00:02:46]} Nd8 {[%clk 00:46:42]} {[%emt 00:10:45]} 26. Rxd5 {[%clk 00:56:49]}
{[%emt 00:04:45]} exd5 {[%clk 00:47:07]} {[%emt 00:00:05]} 27. Qxd5+ {[%clk
00:56:52]} {[%emt 00:00:27]} e6 {[%clk 00:45:32]} {[%emt 00:02:06]} 28. Qd7
{[%clk 00:48:17]} {[%emt 00:09:04]} Qc6 {[%clk 00:45:38]} {[%emt 00:00:24]} 29.
Qxc6 {[%clk 00:48:09]} {[%emt 00:00:39]} Nxc6 {[%clk 00:46:02]} {[%emt
00:00:05]} 30. Kg2 {[%clk 00:44:06]} {[%emt 00:04:32]} b6 {[%clk 00:44:22]}
{[%emt 00:02:10]} 31. Rd1 {[%clk 00:40:43]} {[%emt 00:03:53]} Rd8 {[%clk
00:42:55]} {[%emt 00:01:57]} 32. Rxd8+ {[%clk 00:39:48]} {[%emt 00:01:25]} Nxd8
{[%clk 00:43:18]} {[%emt 00:00:08]} 33. Bc7 {[%clk 00:38:29]} {[%emt 00:01:49]}
Nc6 {[%clk 00:43:16]} {[%emt 00:00:32]} 34. Nd4 {[%clk 00:36:05]} {[%emt
00:02:54]} Bxd4 {[%clk 00:43:36]} {[%emt 00:00:10]} 35. exd4 {[%clk 00:35:43]}
{[%emt 00:00:51]} Kf7 {[%clk 00:43:20]} {[%emt 00:00:47]} 36. Kf3 {[%clk
00:34:00]} {[%emt 00:02:10]} Ke7 {[%clk 00:43:21]} {[%emt 00:00:32]} 37. Ke4
{[%clk 00:33:26]} {[%emt 00:01:04]} Kd7 {[%clk 00:43:28]} {[%emt 00:00:24]} 38.
Bf4 {[%clk 00:33:23]} {[%emt 00:00:31]} Na5 {[%clk 00:43:42]} {[%emt 00:00:17]}
39. Kd3 {[%clk 00:32:21]} {[%emt 00:01:30]} Nc6 {[%clk 00:40:03]} {[%emt
00:04:11]} 40. Bc1 {[%clk 00:31:41]} {[%emt 00:01:09]} Nd8 {[%clk 00:40:11]}
{[%emt 00:00:23]} 41. c4 {[%clk 00:31:16]} {[%emt 00:00:56]} Nf7 {[%clk
00:40:19]} {[%emt 00:00:21]} 42. h4 {[%clk 00:29:38]} {[%emt 00:02:08]} a6
{[%clk 00:39:12]} {[%emt 00:01:38]} 43. Ba3 {[%clk 00:29:12]} {[%emt 00:00:55]}
Kc6 {[%clk 00:38:46]} {[%emt 00:00:56]} 44. Ke4 {[%clk 00:28:01]} {[%emt
00:01:41]} b5 {[%clk 00:39:02]} {[%emt 00:00:16]} 45. cxb5+ {[%clk 00:27:43]}
{[%emt 00:00:47]} axb5 {[%clk 00:39:26]} {[%emt 00:00:06]} 46. axb5+ {[%clk
00:27:58]} {[%emt 00:00:15]} Kxb5 {[%clk 00:39:51]} {[%emt 00:00:05]} 47. d5
{[%clk 00:27:50]} {[%emt 00:00:39]} e5 {[%clk 00:39:14]} {[%emt 00:01:07]} 48.
Bf8 {[%clk 00:25:45]} {[%emt 00:02:32]} Kb6 {[%clk 00:39:07]} {[%emt 00:00:39]}
49. Bg7 {[%clk 00:25:40]} {[%emt 00:00:35]} Kc7 {[%clk 00:39:16]} {[%emt
00:00:22]} 50. Bxe5+ {[%clk 00:26:00]} {[%emt 00:00:10]} Kd7 {[%clk 00:39:42]}
{[%emt 00:00:04]} 51. Bc3 {[%clk 00:25:14]} {[%emt 00:01:08]} Ke7 {[%clk
00:39:39]} {[%emt 00:00:41]} 52. Bb4+ {[%clk 00:24:54]} {[%emt 00:00:51]} Kd7
{[%clk 00:39:49]} {[%emt 00:00:19]} 53. Ba3 {[%clk 00:24:57]} {[%emt 00:00:24]}
Nh6 {[%clk 00:39:52]} {[%emt 00:00:28]} 54. f3 {[%clk 00:25:15]} {[%emt
00:00:14]} Nf7 {[%clk 00:40:15]} {[%emt 00:00:07]} 55. Bb4 {[%clk 00:25:37]}
{[%emt 00:00:08]} Ke8 {[%clk 00:40:23]} {[%emt 00:00:21]} 56. d6 {[%clk
00:25:48]} {[%emt 00:00:20]} Kd7 {[%clk 00:40:24]} {[%emt 00:00:30]} 57. Kd5
{[%clk 00:26:08]} {[%emt 00:00:10]} Nd8 {[%clk 00:40:17]} {[%emt 00:00:36]} 58.
Bd2 {[%clk 00:25:07]} {[%emt 00:01:31]} Nf7 {[%clk 00:40:13]} {[%emt 00:00:35]}
59. Bf4 {[%clk 00:25:07]} {[%emt 00:00:30]} h5 {[%clk 00:39:08]} {[%emt
00:01:35]} 60. g5 {[%clk 00:24:27]} {[%emt 00:01:09]} Nd8 {[%clk 00:38:48]}
{[%emt 00:00:51]} 61. Ke5 {[%clk 00:23:50]} {[%emt 00:01:07]} Nc6+ {[%clk
00:38:35]} {[%emt 00:00:42]} 62. Kf6 {[%clk 00:23:54]} {[%emt 00:00:25]} Nd4
{[%clk 00:38:56]} {[%emt 00:00:10]} 63. Kxg6 {[%clk 00:24:01]} {[%emt
00:00:23]} Nxf3 {[%clk 00:39:16]} {[%emt 00:00:11]} 64. Kxh5 {[%clk 00:24:18]}
{[%emt 00:00:12]} 1-0

[Event "Kvibergspelen September 2019"]
[Site "Prioritet Serneke Arena, Krutvagen 2, Gothenburg, Sweden"]
[Date "2019.09.29"]
[Round "8.19"]
[White "Svorono, Gabriel"]
[Black "Sidorchuk, Dmitry"]
[Result "1/2-1/2"]
[TimeControl "15 minutes + 5 seconds per move from move one (Round 1 - 4) / 90 minutes + 30 seconds per move from move one (Round 5 - 8)"]
[WhiteFideId "1715623"]
[BlackFideId "14110903"]
[WhiteElo "2082"]
[BlackElo "2266"]

1. e4 {[%clk 01:30:47]} {[%emt 00:00:11]} e6 {[%clk 01:30:30]} {[%emt
00:00:31]} 2. d4 {[%clk 01:31:06]} {[%emt 00:00:09]} d5 {[%clk 01:30:55]}
{[%emt 00:00:06]} 3. Nd2 {[%clk 01:31:32]} {[%emt 00:00:05]} Nf6 {[%clk
01:31:18]} {[%emt 00:00:08]} 4. e5 {[%clk 01:31:58]} {[%emt 00:00:03]} Nfd7
{[%clk 01:31:44]} {[%emt 00:00:04]} 5. Bd3 {[%clk 01:32:23]} {[%emt 00:00:04]}
c5 {[%clk 01:32:10]} {[%emt 00:00:05]} 6. c3 {[%clk 01:32:48]} {[%emt
00:00:04]} Nc6 {[%clk 01:32:33]} {[%emt 00:00:08]} 7. Ne2 {[%clk 01:33:13]}
{[%emt 00:00:04]} cxd4 {[%clk 01:32:52]} {[%emt 00:00:12]} 8. cxd4 {[%clk
01:33:37]} {[%emt 00:00:05]} f6 {[%clk 01:33:19]} {[%emt 00:00:03]} 9. exf6
{[%clk 01:34:01]} {[%emt 00:00:06]} Nxf6 {[%clk 01:33:47]} {[%emt 00:00:04]} 10.
Nf3 {[%clk 01:34:24]} {[%emt 00:00:06]} Bd6 {[%clk 01:34:10]} {[%emt 00:00:07]}
11. O-O {[%clk 01:34:46]} {[%emt 00:00:08]} O-O {[%clk 01:34:29]} {[%emt
00:00:11]} 12. Bf4 {[%clk 01:35:03]} {[%emt 00:00:12]} Bxf4 {[%clk 01:33:30]}
{[%emt 00:01:30]} 13. Nxf4 {[%clk 01:34:46]} {[%emt 00:00:47]} Qd6 {[%clk
01:33:58]} {[%emt 00:00:02]} 14. Ne2 {[%clk 01:29:07]} {[%emt 00:06:09]} Bd7
{[%clk 01:33:54]} {[%emt 00:00:35]} 15. Re1 {[%clk 01:28:33]} {[%emt 00:01:02]}
e5 {[%clk 01:33:04]} {[%emt 00:01:21]} 16. dxe5 {[%clk 01:24:02]} {[%emt
00:05:01]} Nxe5 {[%clk 01:29:41]} {[%emt 00:03:54]} 17. Nxe5 {[%clk 01:24:05]}
{[%emt 00:00:25]} Qxe5 {[%clk 01:30:09]} {[%emt 00:00:04]} 18. Nd4 {[%clk
01:23:47]} {[%emt 00:00:48]} Qf4 {[%clk 01:29:19]} {[%emt 00:01:19]} 19. g3
{[%clk 01:23:18]} {[%emt 00:01:00]} Qd6 {[%clk 01:27:52]} {[%emt 00:01:58]} 20.
Nf5 {[%clk 01:22:04]} {[%emt 00:01:43]} Qb6 {[%clk 01:26:43]} {[%emt 00:01:40]}
21. Qb3 {[%clk 01:21:49]} {[%emt 00:00:45]} Qxb3 {[%clk 01:25:46]} {[%emt
00:01:27]} 22. axb3 {[%clk 01:21:57]} {[%emt 00:00:20]} g6 {[%clk 01:24:39]}
{[%emt 00:01:38]} 23. Nd4 {[%clk 01:21:15]} {[%emt 00:01:12]} Rf7 {[%clk
01:23:30]} {[%emt 00:01:39]} 24. b4 {[%clk 01:20:17]} {[%emt 00:01:28]} Kg7
{[%clk 01:20:20]} {[%emt 00:03:41]} 25. Kg2 {[%clk 01:18:02]} {[%emt 00:02:44]}
h5 {[%clk 01:19:59]} {[%emt 00:00:51]} 26. Ne6+ {[%clk 01:17:34]} {[%emt
00:00:58]} Bxe6 {[%clk 01:16:22]} {[%emt 00:04:07]} 27. Rxe6 {[%clk 01:17:58]}
{[%emt 00:00:05]} Rd7 {[%clk 01:10:30]} {[%emt 00:06:22]} 28. Re5 {[%clk
01:13:25]} {[%emt 00:05:03]} Kf7 {[%clk 01:09:04]} {[%emt 00:01:55]} 29. f3
{[%clk 01:10:09]} {[%emt 00:03:47]} Ng8 {[%clk 01:04:45]} {[%emt 00:04:49]} 30.
g4 {[%clk 01:07:53]} {[%emt 00:02:47]} hxg4 {[%clk 01:02:58]} {[%emt 00:02:18]}
31. fxg4 {[%clk 01:08:01]} {[%emt 00:00:19]} Ne7 {[%clk 01:00:48]} {[%emt
00:02:42]} 32. b5 {[%clk 01:06:42]} {[%emt 00:01:49]} b6 {[%clk 00:58:07]}
{[%emt 00:03:12]} 33. Rf1+ {[%clk 01:04:56]} {[%emt 00:02:15]} Kg7 {[%clk
00:58:23]} {[%emt 00:00:15]} 34. Rfe1 {[%clk 01:04:54]} {[%emt 00:00:30]} Kf7
{[%clk 00:58:25]} {[%emt 00:00:30]} 35. h4 {[%clk 01:02:59]} {[%emt 00:02:23]}
Rc8 {[%clk 00:55:12]} {[%emt 00:03:43]} 36. h5 {[%clk 01:02:31]} {[%emt
00:00:57]} d4 {[%clk 00:54:14]} {[%emt 00:01:29]} 37. Bb1 {[%clk 00:56:47]}
{[%emt 00:06:13]} gxh5 {[%clk 00:52:57]} {[%emt 00:01:48]} 38. Rxh5 {[%clk
00:40:12]} {[%emt 00:17:04]} d3 {[%clk 00:45:15]} {[%emt 00:08:14]} 39. Rh7+
{[%clk 00:38:20]} {[%emt 00:02:21]} Kf6 {[%clk 00:45:01]} {[%emt 00:00:44]} 40.
Bxd3 {[%clk 00:32:05]} {[%emt 00:06:44]} Rxd3 {[%clk 00:45:29]} {[%emt
00:00:03]} 41. Rhxe7 {[%clk 00:32:28]} {[%emt 00:00:06]} Rc2+ {[%clk 00:45:03]}
{[%emt 00:00:58]} 42. R1e2 {[%clk 00:32:45]} {[%emt 00:00:13]} Rxe2+ {[%clk
00:45:11]} {[%emt 00:00:22]} 43. Rxe2 {[%clk 00:33:09]} {[%emt 00:00:06]} Rb3
{[%clk 00:45:35]} {[%emt 00:00:06]} 44. Kf2 {[%clk 00:31:36]} {[%emt 00:02:02]}
Kg5 {[%clk 00:45:53]} {[%emt 00:00:13]} 45. Ke1 {[%clk 00:31:33]} {[%emt
00:00:33]} Kxg4 {[%clk 00:46:12]} {[%emt 00:00:11]} 46. Re7 {[%clk 00:31:54]}
{[%emt 00:00:07]} Rxb5 {[%clk 00:44:16]} {[%emt 00:02:28]} 47. Rxa7 {[%clk
00:32:16]} {[%emt 00:00:07]} Rxb2 {[%clk 00:44:42]} {[%emt 00:00:04]} 48. Kd1
{[%clk 00:32:39]} {[%emt 00:00:07]} Kf4 {[%clk 00:45:01]} {[%emt 00:00:12]} 49.
Kc1 {[%clk 00:33:02]} {[%emt 00:00:07]} Rb5 {[%clk 00:44:45]} {[%emt 00:00:46]}
50. Ra3 {[%clk 00:33:23]} {[%emt 00:00:09]} Ke4 {[%clk 00:45:09]} {[%emt
00:00:07]} 51. Kc2 {[%clk 00:33:42]} {[%emt 00:00:09]} Kd4 {[%clk 00:45:34]}
{[%emt 00:00:06]} 52. Ra4+ {[%clk 00:34:02]} {[%emt 00:00:10]} Kc5 {[%clk
00:46:01]} {[%emt 00:00:03]} 53. Kc3 {[%clk 00:34:25]} {[%emt 00:00:05]} Rb1
{[%clk 00:46:28]} {[%emt 00:00:05]} 54. Rh4 {[%clk 00:34:48]} {[%emt 00:00:06]}
Kb5 {[%clk 00:45:52]} {[%emt 00:01:07]} 55. Rg4 {[%clk 00:34:57]} {[%emt
00:00:20]} Ka5 {[%clk 00:46:10]} {[%emt 00:00:14]} 56. Rh4 {[%clk 00:35:17]}
{[%emt 00:00:09]} b5 {[%clk 00:46:19]} {[%emt 00:00:21]} 57. Kc2 {[%clk
00:35:26]} {[%emt 00:00:20]} Rg1 {[%clk 00:46:44]} {[%emt 00:00:06]} 58. Kb3
{[%clk 00:35:49]} {[%emt 00:00:06]} Rg3+ {[%clk 00:47:07]} {[%emt 00:00:09]} 59.
Kb2 {[%clk 00:36:14]} {[%emt 00:00:02]} Rg5 {[%clk 00:46:57]} {[%emt 00:00:42]}
60. Rf4 {[%clk 00:36:38]} {[%emt 00:00:06]} b4 {[%clk 00:46:02]} {[%emt
00:01:26]} 61. Rf8 {[%clk 00:37:03]} {[%emt 00:00:04]} Rg2+ {[%clk 00:46:00]}
{[%emt 00:00:32]} 62. Kb3 {[%clk 00:37:28]} {[%emt 00:00:05]} Rg3+ {[%clk
00:46:14]} {[%emt 00:00:16]} 63. Kb2 {[%clk 00:37:56]} {[%emt 00:00:02]} Rg5
{[%clk 00:45:32]} {[%emt 00:01:12]} 64. Ra8+ {[%clk 00:38:18]} {[%emt
00:00:07]} Kb5 {[%clk 00:46:01]} {[%emt 00:00:02]} 65. Rb8+ {[%clk 00:38:43]}
{[%emt 00:00:05]} Kc4 {[%clk 00:46:28]} {[%emt 00:00:02]} 66. Rc8+ {[%clk
00:39:10]} {[%emt 00:00:03]} Rc5 {[%clk 00:46:46]} {[%emt 00:00:13]} 67. Rxc5+
{[%clk 00:39:34]} {[%emt 00:00:05]} Kxc5 {[%clk 00:47:16]} 68. Kb3 {[%clk
00:40:01]} {[%emt 00:00:04]} Kb5 {[%clk 00:47:44]} 69. Kb2 {[%clk 00:40:29]}
{[%emt 00:00:04]} Kc4 {[%clk 00:48:13]} {[%emt 00:00:01]} 70. Kc2 {[%clk
00:40:58]} {[%emt 00:00:01]} b3+ {[%clk 00:48:42]} 71. Kb2 {[%clk 00:41:26]}
{[%emt 00:00:02]} Kb4 {[%clk 00:49:11]} {[%emt 00:00:02]} 72. Kb1 {[%clk
00:41:53]} {[%emt 00:00:02]} Kc3 {[%clk 00:49:40]} {[%emt 00:00:01]} 73. Kc1
{[%clk 00:42:22]} {[%emt 00:00:02]} b2+ {[%clk 00:50:09]} 74. Kb1 {[%emt
00:00:02]} Kb3 1/2-1/2